{"text_format":"3","workbook":"xlsx","n_sheets":1,"sheets":["Veldedighetsbudsjett"],"not_rendered":{"charts":2,"images":1,"defined_names":1},"read":"whole","date_system":"1900"}

{"sheet":"Veldedighetsbudsjett","index":0,"n_rows":40,"n_cols":7,"rows_kept":40,"merged":[[16,1,16,6],[21,1,21,5]]}
[null,"Veldedighetsbudsjett",{"$nulls":3},"REGNSKAPSÅR",2012]
{"$rows_empty":7}
[null,null,{"$f":"CONCATENATE(\"RÅ \",RÅ-1)","v":"RÅ 2011"},{"$f":"CONCATENATE(\"RÅ \",RÅ)","v":"RÅ 2012"},{"$f":"CONCATENATE(\"RÅ \",RÅ)","v":"RÅ 2012"},{"$f":"CONCATENATE(\"RÅ \",RÅ)","v":"RÅ 2012"},{"$f":"CONCATENATE(\"RÅ \",RÅ)","v":"RÅ 2012"}]
[null,"INNTEKT","FORRIGE ÅR","FORESLÅTT","FAKTISK","VARIANS","+/- FORRIGE ÅR"]
[null,"Innsamlere og hendelser",{"v":150000,"d":"150000.00"},{"v":200000,"d":"200000.00"},{"v":180000,"d":"180000.00"},{"$f":"Inntektstabell[[#This Row],[FAKTISK]]-Inntektstabell[[#This Row],[FORESLÅTT]]","v":{"v":-20000,"d":"-20000.00 "}},{"$f":"Inntektstabell[[#This Row],[FAKTISK]]-Inntektstabell[[#This Row],[FORRIGE ÅR]]","v":{"v":30000,"d":"30000.00"}}]
[null,"Stiftelse",{"v":50000,"d":"50000.00"},{"v":50000,"d":"50000.00"},{"v":50000,"d":"50000.00"},{"$f":"Inntektstabell[[#This Row],[FAKTISK]]-Inntektstabell[[#This Row],[FORESLÅTT]]","v":{"v":0,"d":"0.00"}},{"$f":"Inntektstabell[[#This Row],[FAKTISK]]-Inntektstabell[[#This Row],[FORRIGE ÅR]]","v":{"v":0,"d":"0.00"}}]
[null,"Donasjoner",{"v":30000,"d":"30000.00"},{"v":40000,"d":"40000.00"},{"v":20000,"d":"20000.00"},{"$f":"Inntektstabell[[#This Row],[FAKTISK]]-Inntektstabell[[#This Row],[FORESLÅTT]]","v":{"v":-20000,"d":"-20000.00 "}},{"$f":"Inntektstabell[[#This Row],[FAKTISK]]-Inntektstabell[[#This Row],[FORRIGE ÅR]]","v":{"v":-10000,"d":"-10000.00 "}}]
[null,"Renteinntekter",{"$nulls":3},{"$f":"Inntektstabell[[#This Row],[FAKTISK]]-Inntektstabell[[#This Row],[FORESLÅTT]]","v":{"v":0,"d":"0.00"}},{"$f":"Inntektstabell[[#This Row],[FAKTISK]]-Inntektstabell[[#This Row],[FORRIGE ÅR]]","v":{"v":0,"d":"0.00"}}]
[null,"Diverse",{"$nulls":3},{"$f":"Inntektstabell[[#This Row],[FAKTISK]]-Inntektstabell[[#This Row],[FORESLÅTT]]","v":{"v":0,"d":"0.00"}},{"$f":"Inntektstabell[[#This Row],[FAKTISK]]-Inntektstabell[[#This Row],[FORRIGE ÅR]]","v":{"v":0,"d":"0.00"}}]
[null,"TOTALER",{"$f":"SUBTOTAL(109,Inntektstabell[FORRIGE ÅR])","v":{"v":230000,"d":"kr 230,000.00"}},{"$f":"SUBTOTAL(109,Inntektstabell[FORESLÅTT])","v":{"v":290000,"d":"kr 290,000.00"}},{"$f":"SUBTOTAL(109,Inntektstabell[FAKTISK])","v":{"v":250000,"d":"kr 250,000.00"}},{"$f":"SUBTOTAL(109,Inntektstabell[VARIANS])","v":{"v":-40000,"d":"-kr 40,000.00"}},{"$f":"SUBTOTAL(105,Inntektstabell[+/- FORRIGE ÅR])","v":{"v":-10000,"d":"-kr 10,000.00"}}]
{"$rows_empty":8}
[null,null,{"$f":"CONCATENATE(\"RÅ \",RÅ-1)","v":"RÅ 2011"},{"$f":"CONCATENATE(\"RÅ \",RÅ)","v":"RÅ 2012"},{"$f":"CONCATENATE(\"RÅ \",RÅ)","v":"RÅ 2012"},{"$f":"CONCATENATE(\"RÅ \",RÅ)","v":"RÅ 2012"},{"$f":"CONCATENATE(\"RÅ \",RÅ)","v":"RÅ 2012"}]
[null,"UTGIFTER","FORRIGE ÅR","FORESLÅTT","FAKTISK","VARIANS","+/- FORRIGE ÅR"]
[null,"Lønninger",{"v":15000,"d":"15,000.00"},{"v":30000,"d":"30,000.00"},{"v":30000,"d":"30,000.00"},{"$f":"Utgiftstabell[[#This Row],[FAKTISK]]-Utgiftstabell[[#This Row],[FORESLÅTT]]","v":{"v":0,"d":"0.00"}},{"$f":"Utgiftstabell[[#This Row],[FAKTISK]]-Utgiftstabell[[#This Row],[FORRIGE ÅR]]","v":{"v":15000,"d":"15,000.00"}}]
[null,"Ytelser",{"v":5000,"d":"5,000.00"},{"v":7500,"d":"7,500.00"},{"v":7800,"d":"7,800.00"},{"$f":"Utgiftstabell[[#This Row],[FAKTISK]]-Utgiftstabell[[#This Row],[FORESLÅTT]]","v":{"v":300,"d":"300.00"}},{"$f":"Utgiftstabell[[#This Row],[FAKTISK]]-Utgiftstabell[[#This Row],[FORRIGE ÅR]]","v":{"v":2800,"d":"2,800.00"}}]
[null,"Leie",{"v":6000,"d":"6,000.00"},{"v":6000,"d":"6,000.00"},{"v":6000,"d":"6,000.00"},{"$f":"Utgiftstabell[[#This Row],[FAKTISK]]-Utgiftstabell[[#This Row],[FORESLÅTT]]","v":{"v":0,"d":"0.00"}},{"$f":"Utgiftstabell[[#This Row],[FAKTISK]]-Utgiftstabell[[#This Row],[FORRIGE ÅR]]","v":{"v":0,"d":"0.00"}}]
[null,"Kommunale avgifter",{"v":1000,"d":"1,000.00"},{"v":1200,"d":"1,200.00"},{"v":1150,"d":"1,150.00"},{"$f":"Utgiftstabell[[#This Row],[FAKTISK]]-Utgiftstabell[[#This Row],[FORESLÅTT]]","v":{"v":-50,"d":"-50.00 "}},{"$f":"Utgiftstabell[[#This Row],[FAKTISK]]-Utgiftstabell[[#This Row],[FORRIGE ÅR]]","v":{"v":150,"d":"150.00"}}]
[null,"Reiser og møter",{"v":2500,"d":"2,500.00"},{"v":2000,"d":"2,000.00"},{"v":2800,"d":"2,800.00"},{"$f":"Utgiftstabell[[#This Row],[FAKTISK]]-Utgiftstabell[[#This Row],[FORESLÅTT]]","v":{"v":800,"d":"800.00"}},{"$f":"Utgiftstabell[[#This Row],[FAKTISK]]-Utgiftstabell[[#This Row],[FORRIGE ÅR]]","v":{"v":300,"d":"300.00"}}]
[null,"Honorarer",{"$nulls":3},{"$f":"Utgiftstabell[[#This Row],[FAKTISK]]-Utgiftstabell[[#This Row],[FORESLÅTT]]","v":{"v":0,"d":"0.00"}},{"$f":"Utgiftstabell[[#This Row],[FAKTISK]]-Utgiftstabell[[#This Row],[FORRIGE ÅR]]","v":{"v":0,"d":"0.00"}}]
[null,"Markedsføring/annonsering",{"$nulls":3},{"$f":"Utgiftstabell[[#This Row],[FAKTISK]]-Utgiftstabell[[#This Row],[FORESLÅTT]]","v":{"v":0,"d":"0.00"}},{"$f":"Utgiftstabell[[#This Row],[FAKTISK]]-Utgiftstabell[[#This Row],[FORRIGE ÅR]]","v":{"v":0,"d":"0.00"}}]
[null,"Forsikring",{"$nulls":3},{"$f":"Utgiftstabell[[#This Row],[FAKTISK]]-Utgiftstabell[[#This Row],[FORESLÅTT]]","v":{"v":0,"d":"0.00"}},{"$f":"Utgiftstabell[[#This Row],[FAKTISK]]-Utgiftstabell[[#This Row],[FORRIGE ÅR]]","v":{"v":0,"d":"0.00"}}]
[null,"Telefon",{"$nulls":3},{"$f":"Utgiftstabell[[#This Row],[FAKTISK]]-Utgiftstabell[[#This Row],[FORESLÅTT]]","v":{"v":0,"d":"0.00"}},{"$f":"Utgiftstabell[[#This Row],[FAKTISK]]-Utgiftstabell[[#This Row],[FORRIGE ÅR]]","v":{"v":0,"d":"0.00"}}]
[null,"Nettavgifter (nettsted, møteplass osv.)",{"$nulls":3},{"$f":"Utgiftstabell[[#This Row],[FAKTISK]]-Utgiftstabell[[#This Row],[FORESLÅTT]]","v":{"v":0,"d":"0.00"}},{"$f":"Utgiftstabell[[#This Row],[FAKTISK]]-Utgiftstabell[[#This Row],[FORRIGE ÅR]]","v":{"v":0,"d":"0.00"}}]
[null,"Utstyr",{"$nulls":3},{"$f":"Utgiftstabell[[#This Row],[FAKTISK]]-Utgiftstabell[[#This Row],[FORESLÅTT]]","v":{"v":0,"d":"0.00"}},{"$f":"Utgiftstabell[[#This Row],[FAKTISK]]-Utgiftstabell[[#This Row],[FORRIGE ÅR]]","v":{"v":0,"d":"0.00"}}]
[null,"Rekvisita",{"$nulls":3},{"$f":"Utgiftstabell[[#This Row],[FAKTISK]]-Utgiftstabell[[#This Row],[FORESLÅTT]]","v":{"v":0,"d":"0.00"}},{"$f":"Utgiftstabell[[#This Row],[FAKTISK]]-Utgiftstabell[[#This Row],[FORRIGE ÅR]]","v":{"v":0,"d":"0.00"}}]
[null,"Porto",{"$nulls":3},{"$f":"Utgiftstabell[[#This Row],[FAKTISK]]-Utgiftstabell[[#This Row],[FORESLÅTT]]","v":{"v":0,"d":"0.00"}},{"$f":"Utgiftstabell[[#This Row],[FAKTISK]]-Utgiftstabell[[#This Row],[FORRIGE ÅR]]","v":{"v":0,"d":"0.00"}}]
[null,"TOTALER",{"$f":"SUBTOTAL(109,Utgiftstabell[FORRIGE ÅR])","v":{"v":29500,"d":"kr 29,500.00"}},{"$f":"SUBTOTAL(109,Utgiftstabell[FORESLÅTT])","v":{"v":46700,"d":"kr 46,700.00"}},{"$f":"SUBTOTAL(109,Utgiftstabell[FAKTISK])","v":{"v":47750,"d":"kr 47,750.00"}},{"$f":"SUBTOTAL(109,Utgiftstabell[VARIANS])","v":{"v":1050,"d":"kr 1,050.00"}},{"$f":"SUBTOTAL(109,Utgiftstabell[+/- FORRIGE ÅR])","v":{"v":18250,"d":"kr 18,250.00"}}]